[Event "Late-Titled-Tuesday-Blitz-April-23-2024"]
[Site "Chess.com"]
[Date "2024.04.23"]
[Round "7"]
[White "stollenmonster"]
[Black "Hamisandwich"]
[Result "0-1"]
[WhiteElo "2908"]
[BlackElo "2754"]
[TimeControl "180+1"]
[EndTime "15:20:05 PDT"]
[Termination "Hamisandwich won by resignation"]

1. e4 {[%clk 0:03:00.9]} 1... e6 {[%clk 0:03:00.2]} 2. Nc3 {[%clk 0:03:00.5]}
2... d5 {[%clk 0:03:00]} 3. g3 {[%clk 0:03:01.2]} 3... Nf6 {[%clk 0:02:52.6]} 4.
Bg2 {[%clk 0:03:01.4]} 4... Nc6 {[%clk 0:02:45.2]} 5. Nge2 {[%clk 0:02:59.1]}
5... d4 {[%clk 0:02:43.3]} 6. Nb1 {[%clk 0:02:58.9]} 6... d3 {[%clk 0:02:40.1]}
7. cxd3 {[%clk 0:02:59.8]} 7... e5 {[%clk 0:02:39.9]} 8. d4 {[%clk 0:02:59.4]}
8... Nxd4 {[%clk 0:02:36.6]} 9. Nxd4 {[%clk 0:02:59.1]} 9... Qxd4 {[%clk
0:02:37.2]} 10. d3 {[%clk 0:02:57.3]} 10... Bg4 {[%clk 0:02:29.4]} 11. Qb3
{[%clk 0:02:53.7]} 11... Qb4+ {[%clk 0:02:25]} 12. Nc3 {[%clk 0:02:49.5]} 12...
Qxb3 {[%clk 0:02:18.6]} 13. axb3 {[%clk 0:02:50.4]} 13... a6 {[%clk 0:02:16.2]}
14. Ra5 {[%clk 0:02:39.7]} 14... Nd7 {[%clk 0:02:08.9]} 15. Be3 {[%clk
0:02:20.7]} 15... O-O-O {[%clk 0:02:00.2]} 16. O-O {[%clk 0:02:14]} 16... Be6
{[%clk 0:01:57.1]} 17. Rc1 {[%clk 0:02:05]} 17... Bxb3 {[%clk 0:01:43.7]} 18. d4
{[%clk 0:01:59.3]} 18... Bb4 {[%clk 0:01:35]} 19. Raa1 {[%clk 0:01:55.9]} 19...
exd4 {[%clk 0:01:25.8]} 20. Bxd4 {[%clk 0:01:56.8]} 20... f6 {[%clk 0:01:21.2]}
21. Nd5 {[%clk 0:01:38.5]} 21... Bd6 {[%clk 0:01:04]} 22. Rc3 {[%clk 0:01:18.5]}
22... Bxd5 {[%clk 0:01:03.5]} 23. exd5 {[%clk 0:01:19.4]} 23... Kb8 {[%clk
0:00:53.3]} 24. Bh3 {[%clk 0:01:13.9]} 24... Rhe8 {[%clk 0:00:48.3]} 25. Be6
{[%clk 0:01:03.5]} 25... Nf8 {[%clk 0:00:43.4]} 26. Bf5 {[%clk 0:00:59.3]} 26...
Be5 {[%clk 0:00:40.3]} 27. Rc4 {[%clk 0:00:51.7]} 27... Bxd4 {[%clk 0:00:36.1]}
28. Rxd4 {[%clk 0:00:51.3]} 28... Re5 {[%clk 0:00:34.6]} 29. Be4 {[%clk
0:00:51.1]} 29... c5 {[%clk 0:00:25.3]} 30. Rda4 {[%clk 0:00:24.8]} 30... Nd7
{[%clk 0:00:21.1]} 31. Bf3 {[%clk 0:00:22.9]} 31... Nb6 {[%clk 0:00:20.6]} 32.
Ra5 {[%clk 0:00:22.4]} 32... c4 {[%clk 0:00:19.5]} 33. Rc1 {[%clk 0:00:19]}
33... Rc8 {[%clk 0:00:17.8]} 34. Kg2 {[%clk 0:00:18.5]} 34... g6 {[%clk
0:00:17.4]} 35. h4 {[%clk 0:00:18.1]} 35... h5 {[%clk 0:00:17.6]} 36. Rc3 {[%clk
0:00:16.7]} 36... Rd8 {[%clk 0:00:15.8]} 37. b3 {[%clk 0:00:13.3]} 37... Nxd5
{[%clk 0:00:14.5]} 38. Bxd5 {[%clk 0:00:09.2]} 38... Rdxd5 {[%clk 0:00:15.4]}
39. Rxd5 {[%clk 0:00:09.1]} 39... Rxd5 {[%clk 0:00:16.3]} 40. Rxc4 {[%clk
0:00:09.7]} 40... Rb5 {[%clk 0:00:14.8]} 41. b4 {[%clk 0:00:09.6]} 41... a5
{[%clk 0:00:14.5]} 42. bxa5 {[%clk 0:00:09.4]} 42... Rxa5 {[%clk 0:00:15.4]} 43.
Rf4 {[%clk 0:00:09.8]} 43... Rf5 {[%clk 0:00:13.9]} 44. Rd4 {[%clk 0:00:10.1]}
44... Kc7 {[%clk 0:00:13.9]} 45. Re4 {[%clk 0:00:10.2]} 45... Kd6 {[%clk
0:00:13.6]} 46. Re8 {[%clk 0:00:09.9]} 46... b5 {[%clk 0:00:13.8]} 47. Rg8
{[%clk 0:00:10.1]} 47... g5 {[%clk 0:00:13.9]} 48. hxg5 {[%clk 0:00:06.9]} 48...
fxg5 {[%clk 0:00:14.3]} 49. f3 {[%clk 0:00:05.8]} 49... b4 {[%clk 0:00:13.9]}
50. Rb8 {[%clk 0:00:04.6]} 50... Kc5 {[%clk 0:00:13.4]} 51. Kf2 {[%clk
0:00:05.3]} 51... Kc4 {[%clk 0:00:13.6]} 52. Ke3 {[%clk 0:00:06]} 52... b3
{[%clk 0:00:12]} 53. f4 {[%clk 0:00:05.6]} 53... gxf4+ {[%clk 0:00:11.1]} 54.
gxf4 {[%clk 0:00:06.5]} 54... Rb5 {[%clk 0:00:11.1]} 55. Rc8+ {[%clk 0:00:07.1]}
55... Kb4 {[%clk 0:00:10.8]} 56. Kd2 {[%clk 0:00:06.2]} 56... b2 {[%clk
0:00:07.6]} 57. Kc2 {[%clk 0:00:05]} 57... Rc5+ {[%clk 0:00:07.6]} 58. Rxc5
{[%clk 0:00:04.6]} 58... Kxc5 {[%clk 0:00:08.5]} 59. Kxb2 {[%clk 0:00:05.1]}
59... h4 {[%clk 0:00:09.1]} 60. f5 {[%clk 0:00:05.3]} 60... h3 {[%clk
0:00:09.7]} 0-1

[Event "Late-Titled-Tuesday-Blitz-April-23-2024"]
[Site "Chess.com"]
[Date "2024.04.23"]
[Round "7"]
[White "super_emi_26"]
[Black "english_player_89"]
[Result "1/2-1/2"]
[WhiteElo "2697"]
[BlackElo "2534"]
[TimeControl "180+1"]
[EndTime "15:20:05 PDT"]
[Termination "Game drawn - insufficient material"]

1. b3 {[%clk 0:03:00.9]} 1... d5 {[%clk 0:02:59.4]} 2. Bb2 {[%clk 0:03:01.8]}
2... Qd6 {[%clk 0:02:59.3]} 3. Nf3 {[%clk 0:03:01.5]} 3... Nd7 {[%clk
0:02:58.2]} 4. d4 {[%clk 0:03:02]} 4... Ngf6 {[%clk 0:02:56.2]} 5. c4 {[%clk
0:03:01.4]} 5... c6 {[%clk 0:02:56]} 6. Nc3 {[%clk 0:03:01.5]} 6... e5 {[%clk
0:02:48.9]} 7. dxe5 {[%clk 0:02:56.4]} 7... Nxe5 {[%clk 0:02:48.5]} 8. cxd5
{[%clk 0:02:57]} 8... Nxf3+ {[%clk 0:02:48.1]} 9. exf3 {[%clk 0:02:56.2]} 9...
cxd5 {[%clk 0:02:46.7]} 10. Bb5+ {[%clk 0:02:55.7]} 10... Bd7 {[%clk 0:02:43.7]}
11. O-O {[%clk 0:02:56.6]} 11... Be7 {[%clk 0:02:42.2]} 12. a4 {[%clk
0:02:46.8]} 12... O-O {[%clk 0:02:40.9]} 13. Ba3 {[%clk 0:02:46.9]} 13... Qe5
{[%clk 0:02:32.2]} 14. Bxe7 {[%clk 0:01:48]} 14... Qxe7 {[%clk 0:02:33.1]} 15.
Nxd5 {[%clk 0:01:44.2]} 15... Nxd5 {[%clk 0:02:31.9]} 16. Qxd5 {[%clk
0:01:44.8]} 16... Be6 {[%clk 0:02:23.8]} 17. Qe4 {[%clk 0:01:44.8]} 17... a6
{[%clk 0:02:16.5]} 18. Bc4 {[%clk 0:01:42.4]} 18... Rfe8 {[%clk 0:02:13.3]} 19.
Rfe1 {[%clk 0:01:42.3]} 19... Rad8 {[%clk 0:01:33.8]} 20. Bxe6 {[%clk
0:01:30.7]} 20... Qxe6 {[%clk 0:01:32.2]} 21. Qxe6 {[%clk 0:01:22.2]} 21... Rxe6
{[%clk 0:01:32.4]} 22. Rxe6 {[%clk 0:01:22.3]} 22... fxe6 {[%clk 0:01:33.3]} 23.
Re1 {[%clk 0:01:07.5]} 23... Rd3 {[%clk 0:01:31.8]} 24. b4 {[%clk 0:01:06.3]}
24... Rb3 {[%clk 0:01:31.4]} 25. g3 {[%clk 0:00:27.8]} 25... Kf7 {[%clk
0:01:28.3]} 26. Re4 {[%clk 0:00:27.2]} 26... Rxf3 {[%clk 0:01:26.1]} 27. Rc4
{[%clk 0:00:27]} 27... b5 {[%clk 0:01:05.2]} 28. Rc7+ {[%clk 0:00:25.7]} 28...
Kf6 {[%clk 0:01:04.7]} 29. axb5 {[%clk 0:00:23.4]} 29... axb5 {[%clk 0:01:03.6]}
30. Rb7 {[%clk 0:00:24]} 30... Rf5 {[%clk 0:01:03.8]} 31. f4 {[%clk 0:00:23.5]}
31... h5 {[%clk 0:01:01.7]} 32. Kg2 {[%clk 0:00:23.6]} 32... g5 {[%clk
0:01:00.5]} 33. fxg5+ {[%clk 0:00:23.2]} 33... Kxg5 {[%clk 0:00:57.2]} 34. Rb6
{[%clk 0:00:23.3]} 34... Kf6 {[%clk 0:00:55]} 35. Kh3 {[%clk 0:00:22.6]} 35...
Re5 {[%clk 0:00:49.5]} 36. Kh4 {[%clk 0:00:22.4]} 36... Kg6 {[%clk 0:00:49.3]}
37. Kh3 {[%clk 0:00:18.5]} 37... Kg5 {[%clk 0:00:41.2]} 38. Kg2 {[%clk
0:00:18.8]} 38... Kg4 {[%clk 0:00:39.1]} 39. h3+ {[%clk 0:00:18.9]} 39... Kf5
{[%clk 0:00:39.3]} 40. Kf3 {[%clk 0:00:19.3]} 40... Kg5 {[%clk 0:00:36.4]} 41.
Rb8 {[%clk 0:00:19.6]} 41... Rd5 {[%clk 0:00:30.5]} 42. Ke4 {[%clk 0:00:19.6]}
42... Kf6 {[%clk 0:00:24.8]} 43. Rc8 {[%clk 0:00:19.9]} 43... Re5+ {[%clk
0:00:22.5]} 44. Kf3 {[%clk 0:00:18.8]} 44... Rf5+ {[%clk 0:00:22.2]} 45. Kg2
{[%clk 0:00:19.2]} 45... Rd5 {[%clk 0:00:21.1]} 46. Rb8 {[%clk 0:00:18.5]} 46...
Kf5 {[%clk 0:00:19.1]} 47. Kf3 {[%clk 0:00:18.5]} 47... Rd3+ {[%clk 0:00:18.8]}
48. Kf2 {[%clk 0:00:19.1]} 48... Ke4 {[%clk 0:00:17.8]} 49. Rxb5 {[%clk
0:00:17.5]} 49... Rd2+ {[%clk 0:00:18.4]} 50. Ke1 {[%clk 0:00:17.8]} 50... Rb2
{[%clk 0:00:12.8]} 51. Rxh5 {[%clk 0:00:13.7]} 51... Kf3 {[%clk 0:00:13.2]} 52.
Rb5 {[%clk 0:00:11.9]} 52... Kxg3 {[%clk 0:00:12.9]} 53. Rb8 {[%clk 0:00:12.1]}
53... Kxh3 {[%clk 0:00:12.7]} 54. b5 {[%clk 0:00:12.7]} 54... Kg3 {[%clk
0:00:12.9]} 55. b6 {[%clk 0:00:13.3]} 55... Kf4 {[%clk 0:00:13.4]} 56. Kd1
{[%clk 0:00:11.9]} 56... Ke3 {[%clk 0:00:12.6]} 57. b7 {[%clk 0:00:12.2]} 57...
e5 {[%clk 0:00:12.1]} 58. Kc1 {[%clk 0:00:12.8]} 58... Rb6 {[%clk 0:00:11.3]}
59. Kc2 {[%clk 0:00:13.4]} 59... e4 {[%clk 0:00:11.6]} 60. Kc3 {[%clk
0:00:14.1]} 60... Ke2 {[%clk 0:00:11.2]} 61. Kd4 {[%clk 0:00:14.7]} 61... e3
{[%clk 0:00:10.8]} 62. Kc5 {[%clk 0:00:15.4]} 62... Rb1 {[%clk 0:00:10.4]} 63.
Kc6 {[%clk 0:00:15.9]} 63... Ke1 {[%clk 0:00:10.1]} 64. Re8 {[%clk 0:00:15.8]}
64... e2 {[%clk 0:00:09.8]} 65. b8=Q {[%clk 0:00:15.6]} 65... Rxb8 {[%clk
0:00:09.8]} 66. Rxb8 {[%clk 0:00:16.5]} 66... Kd2 {[%clk 0:00:10.2]} 67. Re8
{[%clk 0:00:16.9]} 67... e1=Q {[%clk 0:00:10.4]} 68. Rxe1 {[%clk 0:00:16.6]}
68... Kxe1 {[%clk 0:00:11.3]} 1/2-1/2

[Event "Late-Titled-Tuesday-Blitz-April-23-2024"]
[Site "Chess.com"]
[Date "2024.04.23"]
[Round "7"]
[White "Kavyev_Ruslan"]
[Black "th3d4rkness"]
[Result "1-0"]
[WhiteElo "2376"]
[BlackElo "2129"]
[TimeControl "180+1"]
[EndTime "15:20:21 PDT"]
[Termination "Kavyev_Ruslan won on time"]

1. d4 {[%clk 0:03:00.9]} 1... Nf6 {[%clk 0:02:58.7]} 2. Nf3 {[%clk 0:03:01]}
2... g6 {[%clk 0:02:58.7]} 3. c4 {[%clk 0:03:00.6]} 3... Bg7 {[%clk 0:02:57.9]}
4. g3 {[%clk 0:03:00.5]} 4... O-O {[%clk 0:02:56.1]} 5. Bg2 {[%clk 0:03:00.7]}
5... d6 {[%clk 0:02:56.5]} 6. O-O {[%clk 0:03:00.4]} 6... Nc6 {[%clk 0:02:56.9]}
7. Nc3 {[%clk 0:02:58.9]} 7... Bf5 {[%clk 0:02:56.3]} 8. Ne1 {[%clk 0:02:57.7]}
8... e5 {[%clk 0:02:52.8]} 9. d5 {[%clk 0:02:49.7]} 9... Ne7 {[%clk 0:02:45.8]}
10. e4 {[%clk 0:02:46.9]} 10... Bg4 {[%clk 0:02:40.9]} 11. f3 {[%clk 0:02:42.7]}
11... Bd7 {[%clk 0:02:38.4]} 12. Be3 {[%clk 0:02:40.8]} 12... Ne8 {[%clk
0:02:23.2]} 13. b4 {[%clk 0:02:26.9]} 13... f5 {[%clk 0:02:16.9]} 14. Nd3 {[%clk
0:02:25.2]} 14... a5 {[%clk 0:02:08.1]} 15. a3 {[%clk 0:02:21.3]} 15... axb4
{[%clk 0:01:54]} 16. axb4 {[%clk 0:02:22.2]} 16... Rxa1 {[%clk 0:01:53.9]} 17.
Qxa1 {[%clk 0:02:22.4]} 17... fxe4 {[%clk 0:01:53]} 18. fxe4 {[%clk 0:02:19.8]}
18... Rxf1+ {[%clk 0:01:48.6]} 19. Bxf1 {[%clk 0:02:17.3]} 19... Nf6 {[%clk
0:01:41.4]} 20. Qa7 {[%clk 0:02:11.6]} 20... b6 {[%clk 0:01:38.1]} 21. h3 {[%clk
0:01:48.1]} 21... h5 {[%clk 0:01:30.6]} 22. c5 {[%clk 0:01:43.4]} 22... bxc5
{[%clk 0:01:27]} 23. bxc5 {[%clk 0:01:43.5]} 23... Kh7 {[%clk 0:01:19.7]} 24. c6
{[%clk 0:01:41.3]} 24... Bc8 {[%clk 0:01:18.2]} 25. Bg2 {[%clk 0:01:34]} 25...
Bh6 {[%clk 0:01:15]} 26. Bf2 {[%clk 0:01:32.6]} 26... Bd2 {[%clk 0:01:11.6]} 27.
Nb5 {[%clk 0:01:31.8]} 27... Ne8 {[%clk 0:01:11.4]} 28. Kh2 {[%clk 0:01:23.3]}
28... Ng8 {[%clk 0:01:09.5]} 29. Nb2 {[%clk 0:01:22]} 29... Qf6 {[%clk
0:01:01.4]} 30. Nc4 {[%clk 0:01:19.5]} 30... Bb4 {[%clk 0:00:51.2]} 31. Nxc7
{[%clk 0:01:17.5]} 31... Qe7 {[%clk 0:00:45]} 32. Nb5 {[%clk 0:01:13.5]} 32...
Qxa7 {[%clk 0:00:40.4]} 33. Nxa7 {[%clk 0:01:14.4]} 33... Ba6 {[%clk 0:00:40.4]}
34. Nb6 {[%clk 0:01:05.9]} 34... Ngf6 {[%clk 0:00:34.9]} 35. Nd7 {[%clk
0:01:02.5]} 35... Kg7 {[%clk 0:00:30.8]} 36. Nxf6 {[%clk 0:00:57.9]} 36... Kxf6
{[%clk 0:00:30]} 37. Bb6 {[%clk 0:00:58.3]} 37... Bc5 {[%clk 0:00:23.3]} 38.
Bxc5 {[%clk 0:00:34.2]} 38... dxc5 {[%clk 0:00:23.1]} 39. Kg1 {[%clk 0:00:33.1]}
39... Nd6 {[%clk 0:00:20.6]} 40. c7 {[%clk 0:00:28.9]} 40... Ke7 {[%clk
0:00:20.4]} 41. Nc6+ {[%clk 0:00:23]} 41... Kd7 {[%clk 0:00:19.8]} 42. Nb8+
{[%clk 0:00:20.7]} 42... Kc8 {[%clk 0:00:19]} 43. Nxa6 {[%clk 0:00:20.9]} 43...
c4 {[%clk 0:00:15.6]} 44. h4 {[%clk 0:00:20.4]} 44... Kb7 {[%clk 0:00:15.1]} 45.
Nc5+ {[%clk 0:00:17.5]} 45... Kxc7 {[%clk 0:00:15]} 46. Ne6+ {[%clk 0:00:14.7]}
46... Kb6 {[%clk 0:00:15]} 47. Kf2 {[%clk 0:00:15.1]} 47... Kb5 {[%clk
0:00:14.1]} 48. Ke3 {[%clk 0:00:15.5]} 48... Kb4 {[%clk 0:00:14.5]} 49. Nf8
{[%clk 0:00:11.8]} 49... Kb3 {[%clk 0:00:13]} 50. Bf1 {[%clk 0:00:10.7]} 50...
c3 {[%clk 0:00:13.2]} 51. Bd3 {[%clk 0:00:09.9]} 51... Nc4+ {[%clk 0:00:09.2]}
52. Ke2 {[%clk 0:00:06.4]} 52... Nb2 {[%clk 0:00:07.7]} 53. Bb1 {[%clk
0:00:06.2]} 53... Nc4 {[%clk 0:00:06.6]} 54. Nxg6 {[%clk 0:00:04.9]} 54... Kb2
{[%clk 0:00:05.9]} 55. Bd3 {[%clk 0:00:04.5]} 55... Nd6 {[%clk 0:00:04.1]} 56.
Nxe5 {[%clk 0:00:04.5]} 56... c2 {[%clk 0:00:02.3]} 57. Bxc2 {[%clk 0:00:04.3]}
57... Kxc2 {[%clk 0:00:03.2]} 58. Ke3 {[%clk 0:00:04.4]} 58... Kc3 {[%clk
0:00:02.5]} 59. Nf3 {[%clk 0:00:04.2]} 59... Nc4+ {[%clk 0:00:02.3]} 60. Kf4
{[%clk 0:00:04.2]} 60... Nd6 {[%clk 0:00:00.8]} 61. e5 {[%clk 0:00:04.8]} 61...
Nf7 {[%clk 0:00:00.5]} 62. e6 {[%clk 0:00:04.8]} 62... Nd6 {[%clk 0:00:00.7]}
63. Ke5 {[%clk 0:00:05.5]} 63... Nc4+ {[%clk 0:00:01.1]} 64. Kf6 {[%clk
0:00:05.7]} 64... Kd3 {[%clk 0:00:00.5]} 65. e7 {[%clk 0:00:06.3]} 65... Nd6
{[%clk 0:00:00.3]} 66. Ng5 {[%clk 0:00:06.8]} 1-0

[Event "Late-Titled-Tuesday-Blitz-April-23-2024"]
[Site "Chess.com"]
[Date "2024.04.23"]
[Round "7"]
[White "Licancabur"]
[Black "RobertJFischer71"]
[Result "1-0"]
[WhiteElo "2480"]
[BlackElo "2594"]
[TimeControl "180+1"]
[EndTime "15:20:45 PDT"]
[Termination "Licancabur won by resignation"]

1. d4 {[%clk 0:03:00.9]} 1... d5 {[%clk 0:03:00]} 2. Bg5 {[%clk 0:02:59.2]} 2...
Nf6 {[%clk 0:02:58.8]} 3. e3 {[%clk 0:02:58.7]} 3... Ne4 {[%clk 0:02:58.7]} 4.
Bf4 {[%clk 0:02:57.9]} 4... Bf5 {[%clk 0:02:58.8]} 5. Bd3 {[%clk 0:02:56.9]}
5... Bg6 {[%clk 0:02:57.2]} 6. Ne2 {[%clk 0:02:47.3]} 6... e6 {[%clk 0:02:55.5]}
7. O-O {[%clk 0:02:46.1]} 7... Be7 {[%clk 0:02:52.5]} 8. c4 {[%clk 0:02:42.4]}
8... c6 {[%clk 0:02:51.8]} 9. Qc2 {[%clk 0:02:38.6]} 9... O-O {[%clk 0:02:50]}
10. a3 {[%clk 0:02:32.7]} 10... Nd7 {[%clk 0:02:49.4]} 11. h3 {[%clk 0:02:14.1]}
11... Rc8 {[%clk 0:02:44.6]} 12. b4 {[%clk 0:02:08.9]} 12... Re8 {[%clk
0:02:43.6]} 13. Nbc3 {[%clk 0:02:05.6]} 13... Nxc3 {[%clk 0:02:43.5]} 14. Qxc3
{[%clk 0:02:01.4]} 14... Bf6 {[%clk 0:02:40.4]} 15. Bxg6 {[%clk 0:01:53.4]}
15... hxg6 {[%clk 0:02:41.3]} 16. Rfd1 {[%clk 0:01:41.3]} 16... e5 {[%clk
0:02:31.1]} 17. Bh2 {[%clk 0:01:25.9]} 17... exd4 {[%clk 0:02:20.2]} 18. Nxd4
{[%clk 0:01:24.3]} 18... c5 {[%clk 0:02:19.9]} 19. bxc5 {[%clk 0:01:22.6]} 19...
Rxc5 {[%clk 0:02:20.8]} 20. Qb3 {[%clk 0:01:11.7]} 20... Qb6 {[%clk 0:01:44.8]}
21. cxd5 {[%clk 0:01:05.8]} 21... Bxd4 {[%clk 0:01:43.6]} 22. Qxb6 {[%clk
0:01:04.4]} 22... Nxb6 {[%clk 0:01:44.5]} 23. Rxd4 {[%clk 0:01:01.8]} 23... Rxd5
{[%clk 0:01:44.7]} 24. Rxd5 {[%clk 0:00:56.1]} 24... Nxd5 {[%clk 0:01:45.6]} 25.
Rd1 {[%clk 0:00:55.6]} 25... Nb6 {[%clk 0:01:41.2]} 26. Rb1 {[%clk 0:00:33.4]}
26... Re7 {[%clk 0:01:38.1]} 27. g4 {[%clk 0:00:33.2]} 27... Rd7 {[%clk
0:01:32.8]} 28. Kg2 {[%clk 0:00:32.8]} 28... f6 {[%clk 0:01:29.2]} 29. Bg3
{[%clk 0:00:31.1]} 29... g5 {[%clk 0:01:24.7]} 30. h4 {[%clk 0:00:31.1]} 30...
gxh4 {[%clk 0:01:23]} 31. Bxh4 {[%clk 0:00:31.3]} 31... Nc4 {[%clk 0:01:17.8]}
32. a4 {[%clk 0:00:23.6]} 32... b6 {[%clk 0:01:18]} 33. Bg3 {[%clk 0:00:22.8]}
33... Rd5 {[%clk 0:01:13.6]} 34. Rb4 {[%clk 0:00:21.5]} 34... Rc5 {[%clk
0:01:12.1]} 35. Kf1 {[%clk 0:00:17.2]} 35... Kf7 {[%clk 0:01:08.5]} 36. Ke2
{[%clk 0:00:17.7]} 36... Ke6 {[%clk 0:01:08.9]} 37. Kd3 {[%clk 0:00:17.8]} 37...
g5 {[%clk 0:01:05.3]} 38. Rxc4 {[%clk 0:00:16.9]} 38... Ra5 {[%clk 0:00:51]} 39.
Kc3 {[%clk 0:00:16.2]} 39... b5 {[%clk 0:00:45.6]} 40. Rc5 {[%clk 0:00:10.5]}
40... Rxa4 {[%clk 0:00:43.7]} 41. Rxb5 {[%clk 0:00:10.7]} 41... Rxg4 {[%clk
0:00:43.9]} 42. Ra5 {[%clk 0:00:10]} 42... f5 {[%clk 0:00:37.6]} 43. Bb8 {[%clk
0:00:08.7]} 43... Rg2 {[%clk 0:00:36.9]} 44. Ra2 {[%clk 0:00:07.8]} 44... a5
{[%clk 0:00:35.3]} 45. Kd4 {[%clk 0:00:08]} 45... g4 {[%clk 0:00:33]} 46. Kd3
{[%clk 0:00:04.6]} 46... Kf6 {[%clk 0:00:31]} 47. Ke2 {[%clk 0:00:04.6]} 47...
Rg1 {[%clk 0:00:23.4]} 48. Bg3 {[%clk 0:00:04.4]} 48... Rb1 {[%clk 0:00:21.9]}
49. Rxa5 {[%clk 0:00:04.8]} 49... Rb2+ {[%clk 0:00:22.2]} 50. Kf1 {[%clk
0:00:04.7]} 50... Rb4 {[%clk 0:00:20.6]} 51. Kg2 {[%clk 0:00:05.6]} 51... Kg5
{[%clk 0:00:20.4]} 52. Kf1 {[%clk 0:00:06.5]} 52... Kf6 {[%clk 0:00:20.7]} 53.
Kg2 {[%clk 0:00:06.9]} 53... Kg5 {[%clk 0:00:20.6]} 54. Rc5 {[%clk 0:00:06.8]}
54... Ra4 {[%clk 0:00:20.3]} 55. Bf4+ {[%clk 0:00:07.2]} 55... Kg6 {[%clk
0:00:19.2]} 56. Rc6+ {[%clk 0:00:07.7]} 56... Kf7 {[%clk 0:00:19.8]} 57. Kg3
{[%clk 0:00:07.8]} 57... Re4 {[%clk 0:00:18.7]} 58. Rh6 {[%clk 0:00:08.3]} 58...
Ra4 {[%clk 0:00:18.4]} 59. Kh4 {[%clk 0:00:08.5]} 59... Ra2 {[%clk 0:00:17.2]}
60. Bg3 {[%clk 0:00:07.6]} 60... Kg7 {[%clk 0:00:13.5]} 61. Rb6 {[%clk
0:00:07.1]} 61... Ra5 {[%clk 0:00:08.7]} 62. Kg5 {[%clk 0:00:07.4]} 62... Rd5
{[%clk 0:00:09.3]} 63. Rg6+ {[%clk 0:00:06.7]} 63... Kh7 {[%clk 0:00:08.8]} 64.
Rf6 {[%clk 0:00:07.3]} 64... Kg7 {[%clk 0:00:05]} 65. Rxf5 {[%clk 0:00:06.2]}
65... Rd2 {[%clk 0:00:05.9]} 66. Kxg4 {[%clk 0:00:06.3]} 66... Rd7 {[%clk
0:00:06.8]} 67. Rg5+ {[%clk 0:00:06.6]} 67... Kf6 {[%clk 0:00:07.7]} 68. Rf5+
{[%clk 0:00:07.1]} 68... Ke6 {[%clk 0:00:08.3]} 69. Re5+ {[%clk 0:00:07.3]}
69... Kf6 {[%clk 0:00:09]} 70. Re4 {[%clk 0:00:07.8]} 70... Kg6 {[%clk
0:00:09.4]} 71. Rd4 {[%clk 0:00:08.4]} 71... Rf7 {[%clk 0:00:09.5]} 72. e4
{[%clk 0:00:08.7]} 72... Kg7 {[%clk 0:00:10.2]} 73. e5 {[%clk 0:00:09.2]} 73...
Re7 {[%clk 0:00:10.7]} 74. f4 {[%clk 0:00:09.7]} 74... Rf7 {[%clk 0:00:11.2]}
75. f5 {[%clk 0:00:10.3]} 75... Ra7 {[%clk 0:00:12.1]} 76. e6 {[%clk 0:00:09.6]}
76... Ra4 {[%clk 0:00:12.6]} 77. Be5+ {[%clk 0:00:09.2]} 77... Kh7 {[%clk
0:00:11.5]} 78. Rxa4 {[%clk 0:00:09]} 1-0